Entity ,Pay date,Expense Type(T),Expense Area(T),Supplier(T),Transaction Number,Amount,Description
NS&I,27/03/2020,Unitary fee - Outsource partner,Commercial Contracts,Atos IT Services UK Ltd,4016153,"4,484,756.51",Unitary Service Charge - March 2020
NS&I,18/03/2020,Demand-linked costs - Outsource partner,Product Management,Atos IT Services UK Ltd,4015942,"2,048,688.00",Demand Link Service Charge - February 2020
NS&I,18/03/2020,Unitary fee - Outsource partner,B2B Government Payment Services,Atos IT Services UK Ltd,4015982,"1,292,561.15",Tax-free childcare service charges March 2020
NS&I,11/03/2020,Unitary fee - Outsource partner,B2B Government Payment Services,Atos IT Services UK Ltd,4015981,"591,376.09",Help to save service charges - March 2020
NS&I,11/03/2020,Unitary fee - Outsource partner,B2B Government Payment Services,Atos IT Services UK Ltd,4015979,"563,357.26",Help to buy service charges - February 2020
NS&I,11/03/2020,Project costs - Outsource partner,Programme Delivery,Atos IT Services UK Ltd,4015903,"441,828.00",Payment service development costs
NS&I,04/03/2020,Project costs - Outsource partner,Programme Delivery,Atos IT Services UK Ltd,4015800,"355,594.00",Information systems testing 
NS&I,04/03/2020,Project costs - Outsource partner,Programme Delivery,Atos IT Services UK Ltd,4015820,"320,000.00",Enhancing delivery channels
NS&I,18/03/2020,Unitary fee - Outsource partner,B2B Government Payment Services,Atos IT Services UK Ltd,4016030,"328,927.54",Help to buy service charges - March 2020
NS&I,18/03/2020,Unitary fee - Outsource partner,B2B Government Payment Services,Atos IT Services UK Ltd,4015983,"232,222.70",30 hours free childcare Service Charges - March 2020
NS&I,11/03/2020,Project costs - Outsource partner,Programme Delivery,Atos IT Services UK Ltd,4016024,"225,000.00",Data warehouse development work 
NS&I,18/03/2020,Unitary fee - Outsource partner,B2B Government Payment Services,Atos IT Services UK Ltd,4015976,"173,819.30",Tax-free childcare service charges January 2020
NS&I,18/03/2020,Project costs - Outsource partner,Programme Delivery,Atos IT Services UK Ltd,4016023,"152,895.00",Strategy development cost
NS&I,18/03/2020,Unitary fee - Outsource partner,B2B Government Payment Services,Atos IT Services UK Ltd,4015975,"129,336.43",Court Funds Office Service Charges -  February 2020
NS&I,11/03/2020,Project costs - Outsource partner,Programme Delivery,Atos IT Services UK Ltd,4015904,"126,605.00",Costs of regulatory change
NS&I,18/03/2020,Project costs - Outsource partner,Programme Delivery,Atos IT Services UK Ltd,4016022,"126,605.00",Costs of regulatory change
NS&I,18/03/2020,Unitary fee - Outsource partner,B2B Government Payment Services,Atos IT Services UK Ltd,4015977,"121,572.23",Tax-free childcare service charges - January 2020
NS&I,18/03/2020,Unitary fee - Outsource partner,B2B Government Payment Services,Atos IT Services UK Ltd,4015980,"121,572.23",30 hours free childcare Service Charges - January 2020
NS&I,18/03/2020,Advertising and production,Marketing Communications,Manning Gottlieb OMD,4016064,"120,259.52",Cost of Marketing Campaigns
NS&I,04/03/2020,Advertising and production,Marketing Communications,Manning Gottlieb OMD,4015920,"120,259.47",Cost of Marketing Campaigns
NS&I,18/03/2020,Advertising and production,Marketing Communications,Manning Gottlieb OMD,4016063,"112,500.82",Cost of Marketing Campaigns
NS&I,18/03/2020,Unitary fee - Outsource partner,B2B Government Payment Services,Atos IT Services UK Ltd,4015978,"99,377.84",Tax-free childcare service charges - January 2020
NS&I,04/03/2020,Project costs - Outsource partner,Programme Delivery,Atos IT Services UK Ltd,4015823,"95,000.00",Enhancing delivery channels
NS&I,25/03/2020,Professional services - Legal,Property & Commercial Contracts,PA Consulting Services Ltd,4016102,"79,200.00",Strategic Business Advice and Support
NS&I,04/03/2020,Maintenance and running costs - Outsource partner,Change Delivery,Atos IT Services UK Ltd,4015902,"75,000.00",Transformation programme management cost January 2020
NS&I,18/03/2020,Maintenance and running costs - Outsource partner,Change Delivery,Atos IT Services UK Ltd,4015951,"75,000.00",Transformation programme management cost Febraury 2020
NS&I,11/03/2020,Software/ Licence fees (non-capital),Brand,Monotype Ltd,4015963,"73,195.92",Software Licences - 2020 to 2022
NS&I,18/03/2020,Advertising and production,Marketing Communications,FCB Inferno Limited,4016083,"66,651.66",Cost of Marketing Campaigns
NS&I,11/03/2020,Project costs - Outsource partner,Programme Delivery,Atos IT Services UK Ltd,4015921,"65,130.00",Data warehouse development work 
NS&I,18/03/2020,Project costs - Outsource partner,Programme Delivery,Atos IT Services UK Ltd,4016002,"65,130.00",Data warehouse development work 
NS&I,25/03/2020,Market research,Market Intelligence & Research,Discovery Research Ltd.,4016118,"64,068.00",Customers products survey
NS&I,25/03/2020,Project costs - Outsource partner,Programme Delivery,Atos IT Services UK Ltd,4016126,"60,320.00",Data Transfer service
NS&I,18/03/2020,Project costs - Outsource partner,Programme Delivery,Atos IT Services UK Ltd,4016079,"59,592.00",Information systems testing 
NS&I,25/03/2020,Market research,Market Intelligence & Research,Discovery Research Ltd.,4016108,"58,644.00",Customers products survey
NS&I,04/03/2020,Advertising and production,Marketing Communications,FCB Inferno Limited,4015924,"52,509.37",Cost of Marketing Campaigns
NS&I,18/03/2020,Project costs - Outsource partner,Programme Delivery,Atos IT Services UK Ltd,4016078,"45,617.00",Product Development Costs
NS&I,04/03/2020,Market research,Market Intelligence & Research,Discovery Research Ltd.,4015886,"44,340.00",Customers products survey
NS&I,11/03/2020,Professional services - Projects,Programme Delivery,Jigsaw Cloud Limited,4016003,"43,200.00",Management system implementation
NS&I,04/03/2020,Project costs - Outsource partner,Programme Delivery,Atos IT Services UK Ltd,4015816,"37,490.00",Information systems testing 
NS&I,25/03/2020,Professional services - Legal,Property & Commercial Contracts,Bloom Procurement Services Limited,4016098,"35,882.40",Strategy development cost
NS&I,11/03/2020,Maintenance and running costs - Outsource partner,Retail Experience,Atos IT Services UK Ltd,4015896,"34,464.00",Website Improvement Costs 
NS&I,18/03/2020,Advertising and production,Marketing Communications,FCB Inferno Limited,4016056,"34,333.98",Cost of Marketing Campaigns
NS&I,25/03/2020,Project costs - Outsource partner,Programme Delivery,Atos IT Services UK Ltd,4016124,"32,019.00",Information systems testing 
NS&I,11/03/2020,Advertising and production,Marketing Communications,Manning Gottlieb OMD,4015997,"30,625.14",Cost of Marketing Campaigns
NS&I,04/03/2020,Project costs - Outsource partner,Programme Delivery,Atos IT Services UK Ltd,4015813,"30,411.00",Information systems testing 
NS&I,18/03/2020,Project costs - Outsource partner,Programme Delivery,Atos IT Services UK Ltd,4016080,"30,000.00",Enhancing delivery channels
NS&I,04/03/2020,Project costs - Outsource partner,Programme Delivery,Atos IT Services UK Ltd,4015801,"27,986.00",Information systems testing 
NS&I,25/03/2020,Advertising agency costs,Marketing Communications,Unlimited Group United Ltd,4016107,"27,216.00",Cost of Marketing Campaigns
NS&I,25/03/2020,Project costs - Outsource partner,Programme Delivery,Atos IT Services UK Ltd,4016125,"27,063.00",Information systems testing 
NS&I,25/03/2020,Advertising agency costs,Marketing Communications,Starcom WW Ltd,4016128,"26,988.00",Cost of Marketing Campaigns
NS&I,18/03/2020,Project costs - Outsource partner,Programme Delivery,Atos IT Services UK Ltd,4016035,"26,406.00",Legacy service closure
NS&I,18/03/2020,Advertising and production,Marketing Communications,Manning Gottlieb OMD,4016057,"26,329.12",Cost of Marketing Campaigns
NS&I,11/03/2020,Maintenance and running costs - Outsource partner,Retail Experience,Atos IT Services UK Ltd,4015955,"25,859.00",Customer Experience Platform support costs
NS&I,11/03/2020,Market research,Market Intelligence & Research,Discovery Research Ltd.,4015950,"25,080.00",Qualitative research costs
